[Event "NJSK 2024 A"]
[Site "Groningen, Netherlands"]
[Date "2024.05.01"]
[Round "5.3"]
[White "Labruyere, Roger"]
[Black "Leorato, Imanol"]
[Result "1-0"]
[TimeControl "90min/40moves + 30min + 30sec/move"]
[WhiteElo "2267"]
[BlackElo "1837"]

1. e4 {[%clk 01:30:55]} {[%emt 00:00:06]} c5 {[%clk 01:30:43]} {[%emt
00:00:17]} 2. Nf3 {[%clk 01:31:21]} {[%emt 00:00:04]} Nc6 {[%clk 01:30:56]}
{[%emt 00:00:17]} 3. c3 {[%clk 01:30:35]} {[%emt 00:01:15]} d5 {[%clk
01:31:09]} {[%emt 00:00:17]} 4. exd5 {[%clk 01:30:39]} {[%emt 00:00:27]} Qxd5
{[%clk 01:31:14]} {[%emt 00:00:25]} 5. d4 {[%clk 01:30:51]} {[%emt 00:00:18]}
Bg4 {[%clk 01:31:07]} {[%emt 00:00:36]} 6. Be2 {[%clk 01:29:05]} {[%emt
00:02:17]} cxd4 {[%clk 01:29:59]} {[%emt 00:01:38]} 7. cxd4 {[%clk 01:25:43]}
{[%emt 00:03:52]} e6 {[%clk 01:29:37]} {[%emt 00:00:52]} 8. Nc3 {[%clk
01:25:56]} {[%emt 00:00:18]} Qa5 {[%clk 01:29:23]} {[%emt 00:00:43]} 9. O-O
{[%clk 01:26:10]} {[%emt 00:00:15]} Nf6 {[%clk 01:29:16]} {[%emt 00:00:37]} 10.
h3 {[%clk 01:24:22]} {[%emt 00:02:19]} Bh5 {[%clk 01:27:27]} {[%emt 00:02:18]}
11. a3 {[%clk 01:10:09]} {[%emt 00:14:43]} Rd8 {[%clk 01:10:15]} {[%emt
00:17:43]} 12. Be3 {[%clk 00:53:44]} {[%emt 00:16:55]} Bd6 {[%clk 01:01:45]}
{[%emt 00:09:00]} 13. b4 {[%clk 00:53:28]} {[%emt 00:00:47]} Qc7 {[%clk
01:01:42]} {[%emt 00:00:33]} 14. Nb5 {[%clk 00:53:21]} {[%emt 00:00:36]} Qb8
{[%clk 01:01:36]} {[%emt 00:00:35]} 15. Nxd6+ {[%clk 00:52:15]} {[%emt
00:01:37]} Qxd6 {[%clk 01:01:54]} {[%emt 00:00:13]} 16. b5 {[%clk 00:51:00]}
{[%emt 00:01:45]} Ne7 {[%clk 01:00:01]} {[%emt 00:02:22]} 17. Qa4 {[%clk
00:46:30]} {[%emt 00:05:00]} O-O {[%clk 00:29:08]} {[%emt 00:31:23]} 18. Qxa7
{[%clk 00:46:08]} {[%emt 00:00:52]} b6 {[%clk 00:25:28]} {[%emt 00:04:10]} 19.
Qa4 {[%clk 00:44:09]} {[%emt 00:02:29]} Nfd5 {[%clk 00:24:15]} {[%emt
00:01:43]} 20. Qb3 {[%clk 00:26:15]} {[%emt 00:18:23]} f5 {[%clk 00:18:49]}
{[%emt 00:05:55]} 21. Bg5 {[%clk 00:24:30]} {[%emt 00:02:16]} h6 {[%clk
00:17:47]} {[%emt 00:01:33]} 22. Bxe7 {[%clk 00:24:49]} {[%emt 00:00:11]} Qxe7
{[%clk 00:18:08]} {[%emt 00:00:09]} 23. Bc4 {[%clk 00:20:38]} {[%emt 00:04:40]}
Nf4 {[%clk 00:13:01]} {[%emt 00:05:38]} 24. Rad1 {[%clk 00:19:49]} {[%emt
00:01:18]} g5 {[%clk 00:12:16]} {[%emt 00:01:15]} 25. Rfe1 {[%clk 00:19:00]}
{[%emt 00:01:19]} Bxf3 {[%clk 00:10:07]} {[%emt 00:02:39]} 26. Qxf3 {[%clk
00:19:16]} {[%emt 00:00:15]} Rd6 {[%clk 00:09:33]} {[%emt 00:01:04]} 27. a4
{[%clk 00:17:20]} {[%emt 00:02:26]} Rfd8 {[%clk 00:08:46]} {[%emt 00:01:17]} 28.
d5 {[%clk 00:17:13]} {[%emt 00:00:37]} e5 {[%clk 00:08:51]} {[%emt 00:00:25]}
29. g3 {[%clk 00:15:35]} {[%emt 00:02:08]} Nxh3+ {[%clk 00:08:25]} {[%emt
00:00:56]} 30. Kg2 {[%clk 00:15:52]} {[%emt 00:00:12]} Qf6 {[%clk 00:08:38]}
{[%emt 00:00:17]} 31. Qe3 {[%clk 00:15:41]} {[%emt 00:00:40]} g4 {[%clk
00:08:05]} {[%emt 00:01:04]} 32. Qxe5 {[%clk 00:15:50]} {[%emt 00:00:21]} Ng5
{[%clk 00:08:22]} {[%emt 00:00:13]} 33. Qxf6 {[%clk 00:16:08]} {[%emt
00:00:12]} Rxf6 {[%clk 00:08:46]} {[%emt 00:00:06]} 34. d6+ {[%clk 00:15:55]}
{[%emt 00:00:42]} Kf8 {[%clk 00:08:20]} {[%emt 00:00:56]} 35. d7 {[%clk
00:14:04]} {[%emt 00:02:22]} Ne4 {[%clk 00:07:38]} {[%emt 00:01:12]} 36. Bd5
{[%clk 00:11:40]} {[%emt 00:02:54]} Rxd7 {[%clk 00:06:30]} {[%emt 00:01:38]} 37.
Bxe4 {[%clk 00:12:09]} {[%emt 00:00:01]} Rxd1 {[%clk 00:06:51]} {[%emt
00:00:09]} 38. Rxd1 {[%clk 00:12:37]} {[%emt 00:00:02]} fxe4 {[%clk 00:07:12]}
{[%emt 00:00:09]} 39. Rd4 {[%clk 00:13:04]} {[%emt 00:00:02]} Re6 {[%clk
00:07:29]} {[%emt 00:00:13]} 40. Kf1 {[%clk 00:13:26]} {[%emt 00:00:08]} e3
{[%clk 00:06:11]} {[%emt 00:01:48]} 41. Rxg4 {[%clk 00:13:50]} {[%emt
00:00:07]} exf2 {[%clk 00:06:18]} {[%emt 00:00:23]} 42. Kxf2 {[%clk 00:14:16]}
{[%emt 00:00:03]} Ke7 {[%clk 00:06:17]} {[%emt 00:00:32]} 43. Rc4 {[%clk
00:14:25]} {[%emt 00:00:20]} Kd7 {[%clk 00:03:32]} {[%emt 00:03:16]} 44. Kf3
{[%clk 00:14:25]} {[%emt 00:00:30]} h5 {[%clk 00:01:39]} {[%emt 00:02:22]} 45.
Kf4 {[%clk 00:13:59]} {[%emt 00:00:56]} Rg6 {[%clk 00:01:44]} {[%emt 00:00:26]}
46. Kf3 {[%clk 00:13:36]} {[%emt 00:00:53]} Re6 {[%clk 00:01:45]} {[%emt
00:00:29]} 47. Kg2 {[%clk 00:10:59]} {[%emt 00:03:06]} Rg6 {[%clk 00:29:43]}
{[%emt 00:02:32]} 48. Kh3 {[%clk 00:41:22]} {[%emt 00:00:06]} Re6 {[%clk
00:30:05]} {[%emt 00:00:09]} 49. Kh4 {[%clk 00:41:01]} {[%emt 00:00:51]} Rg6
{[%clk 00:29:45]} {[%emt 00:00:50]} 50. Rc3 {[%clk 00:35:23]} {[%emt 00:06:09]}
Rg4+ {[%clk 00:23:50]} {[%emt 00:06:24]} 51. Kxh5 {[%clk 00:34:55]} {[%emt
00:00:58]} Rxa4 {[%emt 00:00:13]} 52. Rc6 {[%clk 00:35:21]} Rb4 {[%clk
00:24:26]} {[%emt 00:00:16]} 53. Rxb6 {[%clk 00:35:44]} {[%emt 00:00:07]} Ke7
{[%clk 00:24:34]} {[%emt 00:00:22]} 54. g4 {[%clk 00:35:54]} {[%emt 00:00:20]}
Kf7 {[%clk 00:24:33]} {[%emt 00:00:31]} 55. Kg5 {[%clk 00:36:02]} {[%emt
00:00:21]} Rb1 {[%clk 00:23:43]} {[%emt 00:01:21]} 56. Rb7+ {[%clk 00:36:02]}
{[%emt 00:00:30]} Ke6 {[%clk 00:23:32]} {[%emt 00:00:41]} 57. Kg6 {[%clk
00:36:21]} {[%emt 00:00:10]} Rg1 {[%clk 00:21:54]} {[%emt 00:02:08]} 58. g5
{[%clk 00:36:47]} {[%emt 00:00:04]} Rb1 {[%clk 00:22:11]} {[%emt 00:00:13]} 59.
b6 {[%clk 00:36:40]} {[%emt 00:00:37]} Rb2 {[%clk 00:21:35]} {[%emt 00:01:06]}
60. Rf7 {[%clk 00:36:56]} {[%emt 00:00:13]} Rb1 {[%clk 00:21:47]} {[%emt
00:00:19]} 61. Rf6+ {[%clk 00:37:08]} {[%emt 00:00:18]} Ke7 {[%clk 00:22:01]}
{[%emt 00:00:17]} 62. Kg7 {[%clk 00:37:30]} {[%emt 00:00:07]} Rb2 {[%clk
00:21:57]} {[%emt 00:00:33]} 63. g6 {[%clk 00:37:34]} {[%emt 00:00:26]} Rb1
{[%clk 00:22:09]} {[%emt 00:00:18]} 64. b7 {[%clk 00:37:50]} {[%emt 00:00:14]}
Rb2 {[%clk 00:22:25]} {[%emt 00:00:14]} 65. Rf8 {[%clk 00:38:14]} {[%emt
00:00:06]} 1-0

[Event "NJSK 2024 A"]
[Site "Groningen, Netherlands"]
[Date "2024.05.01"]
[Round "5.4"]
[White "Van Hesselingen, Guido"]
[Black "Moskalets, Sofiia"]
[Result "0-1"]
[TimeControl "90min/40moves + 30min + 30sec/move"]
[WhiteElo "2016"]
[BlackElo "2050"]

1. e4 {[%clk 01:30:53]} {[%emt 00:00:06]} c5 {[%clk 01:30:54]} {[%emt
00:00:07]} 2. Nf3 {[%clk 01:31:18]} {[%emt 00:00:04]} e6 {[%clk 01:31:11]}
{[%emt 00:00:14]} 3. d4 {[%clk 01:31:42]} {[%emt 00:00:06]} cxd4 {[%clk
01:31:37]} {[%emt 00:00:05]} 4. Nxd4 {[%clk 01:32:07]} {[%emt 00:00:04]} Nc6
{[%clk 01:32:03]} {[%emt 00:00:05]} 5. Nc3 {[%clk 01:32:31]} {[%emt 00:00:05]}
a6 {[%clk 01:32:29]} {[%emt 00:00:05]} 6. Be3 {[%clk 01:31:45]} {[%emt
00:01:15]} Qc7 {[%clk 01:32:20]} {[%emt 00:00:40]} 7. Bd3 {[%clk 01:26:19]}
{[%emt 00:05:56]} Nf6 {[%clk 01:30:00]} {[%emt 00:02:49]} 8. f4 {[%clk
01:21:19]} {[%emt 00:05:30]} Nxd4 {[%clk 01:19:15]} {[%emt 00:11:16]} 9. Bxd4
{[%clk 01:21:30]} {[%emt 00:00:18]} Qxf4 {[%clk 01:15:34]} {[%emt 00:04:12]} 10.
Rf1 {[%clk 01:16:56]} {[%emt 00:05:03]} Qg5 {[%clk 01:01:26]} {[%emt 00:14:39]}
11. e5 {[%clk 00:56:13]} {[%emt 00:21:13]} Bc5 {[%clk 01:00:14]} {[%emt
00:01:41]} 12. exf6 {[%clk 00:45:41]} {[%emt 00:11:01]} Bxd4 {[%clk 01:00:39]}
{[%emt 00:00:06]} 13. Ne4 {[%clk 00:45:35]} {[%emt 00:00:36]} Qe3+ {[%clk
00:57:13]} {[%emt 00:03:56]} 14. Qe2 {[%clk 00:45:32]} {[%emt 00:00:31]} Qxe2+
{[%clk 00:57:38]} {[%emt 00:00:06]} 15. Kxe2 {[%clk 00:45:52]} {[%emt
00:00:10]} gxf6 {[%clk 00:55:04]} {[%emt 00:03:05]} 16. c3 {[%clk 00:42:14]}
{[%emt 00:04:08]} Be5 {[%clk 00:55:00]} {[%emt 00:00:34]} 17. Nxf6+ {[%clk
00:42:24]} {[%emt 00:00:19]} Ke7 {[%clk 00:55:15]} {[%emt 00:00:16]} 18. Ng4
{[%clk 00:42:26]} {[%emt 00:00:27]} Bg7 {[%clk 00:53:06]} {[%emt 00:02:39]} 19.
Rf3 {[%clk 00:37:22]} {[%emt 00:05:34]} b5 {[%clk 00:43:24]} {[%emt 00:10:12]}
20. Raf1 {[%clk 00:29:17]} {[%emt 00:08:35]} f5 {[%clk 00:42:13]} {[%emt
00:01:41]} 21. Ne3 {[%clk 00:28:59]} {[%emt 00:00:47]} Bb7 {[%clk 00:41:20]}
{[%emt 00:01:25]} 22. R3f2 {[%clk 00:24:33]} {[%emt 00:04:56]} Be5 {[%clk
00:36:39]} {[%emt 00:05:11]} 23. g4 {[%clk 00:23:22]} {[%emt 00:01:40]} f4
{[%clk 00:35:46]} {[%emt 00:01:23]} 24. Nc2 {[%clk 00:22:32]} {[%emt 00:01:21]}
Rag8 {[%clk 00:29:14]} {[%emt 00:07:01]} 25. Rg1 {[%clk 00:19:55]} {[%emt
00:03:06]} Bc7 {[%clk 00:28:08]} {[%emt 00:01:37]} 26. Nd4 {[%clk 00:16:09]}
{[%emt 00:04:15]} e5 {[%clk 00:27:42]} {[%emt 00:00:57]} 27. Nf5+ {[%clk
00:16:06]} {[%emt 00:00:33]} Kd8 {[%clk 00:27:56]} {[%emt 00:00:15]} 28. Nh6
{[%clk 00:15:02]} {[%emt 00:01:34]} Rf8 {[%clk 00:28:03]} {[%emt 00:00:23]} 29.
Rd1 {[%clk 00:12:39]} {[%emt 00:02:53]} e4 {[%clk 00:27:36]} {[%emt 00:00:58]}
30. Bc2 {[%clk 00:12:57]} {[%emt 00:00:13]} f3+ {[%clk 00:27:01]} {[%emt
00:01:04]} 31. Ke3 {[%clk 00:11:37]} {[%emt 00:01:50]} Bf4+ {[%clk 00:26:55]}
{[%emt 00:00:37]} 32. Kd4 {[%emt 00:00:15]} 0-1

[Event "NJSK 2024 A"]
[Site "Groningen, Netherlands"]
[Date "2024.05.01"]
[Round "5.5"]
[White "Blom, Rens"]
[Black "Klugstedt, Vincent"]
[Result "1-0"]
[TimeControl "90min/40moves + 30min + 30sec/move"]
[WhiteElo "1963"]
[BlackElo "1913"]

1. e4 {[%clk 01:30:57]} {[%emt 00:00:02]} c5 {[%clk 01:30:48]} {[%emt
00:00:13]} 2. Nf3 {[%clk 01:31:21]} {[%emt 00:00:06]} g6 {[%clk 01:31:01]}
{[%emt 00:00:17]} 3. d4 {[%clk 01:31:46]} {[%emt 00:00:05]} cxd4 {[%clk
01:31:24]} {[%emt 00:00:07]} 4. Nxd4 {[%clk 01:32:11]} {[%emt 00:00:05]} Bg7
{[%clk 01:31:42]} {[%emt 00:00:11]} 5. Nc3 {[%clk 01:32:31]} {[%emt 00:00:10]}
Nc6 {[%clk 01:31:44]} {[%emt 00:00:29]} 6. Be3 {[%clk 01:32:55]} {[%emt
00:00:06]} Nf6 {[%clk 01:32:03]} {[%emt 00:00:11]} 7. Bc4 {[%clk 01:32:48]}
{[%emt 00:00:37]} O-O {[%clk 01:32:00]} {[%emt 00:00:32]} 8. Bb3 {[%clk
01:33:07]} {[%emt 00:00:12]} d6 {[%clk 01:30:25]} {[%emt 00:02:05]} 9. f3
{[%clk 01:33:30]} {[%emt 00:00:07]} Bd7 {[%clk 01:30:15]} {[%emt 00:00:40]} 10.
Qd2 {[%clk 01:33:10]} {[%emt 00:00:50]} Na5 {[%clk 01:29:16]} {[%emt 00:01:29]}
11. h4 {[%clk 01:32:05]} {[%emt 00:01:34]} h5 {[%clk 01:29:30]} {[%emt
00:00:17]} 12. O-O-O {[%clk 01:32:01]} {[%emt 00:00:34]} Rc8 {[%clk 01:28:54]}
{[%emt 00:01:06]} 13. g4 {[%clk 01:31:48]} {[%emt 00:00:44]} hxg4 {[%clk
01:27:25]} {[%emt 00:01:58]} 14. h5 {[%clk 01:31:29]} {[%emt 00:00:49]} Nxh5
{[%clk 01:27:40]} {[%emt 00:00:14]} 15. fxg4 {[%clk 01:30:49]} {[%emt
00:01:10]} Bxg4 {[%clk 01:25:54]} {[%emt 00:02:16]} 16. Rdg1 {[%clk 01:30:45]}
{[%emt 00:00:35]} Nxb3+ {[%clk 01:20:50]} {[%emt 00:05:33]} 17. axb3 {[%clk
01:30:29]} {[%emt 00:00:48]} Qd7 {[%clk 00:56:18]} {[%emt 00:25:01]} 18. Qg2
{[%clk 01:25:48]} {[%emt 00:05:11]} Nf6 {[%clk 00:46:31]} {[%emt 00:10:17]} 19.
Nd5 {[%clk 01:08:54]} {[%emt 00:17:24]} e5 {[%clk 00:33:19]} {[%emt 00:13:41]}
20. Nxf6+ {[%clk 00:53:15]} {[%emt 00:16:10]} Bxf6 {[%clk 00:33:28]} {[%emt
00:00:20]} 21. Qh2 {[%clk 00:52:59]} {[%emt 00:00:46]} Rfd8 {[%clk 00:26:52]}
{[%emt 00:07:07]} 22. Rf1 {[%clk 00:47:48]} {[%emt 00:05:42]} Qe7 {[%clk
00:24:10]} {[%emt 00:03:11]} 23. Kb1 {[%clk 00:43:25]} {[%emt 00:04:52]} Bg7
{[%clk 00:23:25]} {[%emt 00:01:16]} 24. Qh7+ {[%clk 00:39:35]} {[%emt
00:04:19]} Kf8 {[%clk 00:23:54]} {[%emt 00:00:01]} 25. Bh6 {[%clk 00:39:47]}
{[%emt 00:00:18]} Ke8 {[%clk 00:20:41]} {[%emt 00:03:44]} 26. Qxg7 {[%clk
00:37:16]} {[%emt 00:03:01]} exd4 {[%clk 00:20:24]} {[%emt 00:00:46]} 27. Bg5
{[%clk 00:37:16]} {[%emt 00:00:30]} f6 {[%clk 00:18:38]} {[%emt 00:02:16]} 28.
Qxg6+ {[%clk 00:37:16]} {[%emt 00:00:30]} Kd7 {[%clk 00:16:44]} {[%emt
00:02:23]} 29. Rh7 {[%clk 00:37:29]} {[%emt 00:00:19]} fxg5 {[%clk 00:15:51]}
{[%emt 00:01:21]} 30. Rxe7+ {[%clk 00:37:53]} {[%emt 00:00:08]} Kxe7 {[%clk
00:16:13]} {[%emt 00:00:08]} 31. Qf7# {[%clk 00:37:46]} {[%emt 00:00:05]} 1-0

[Event "NJSK 2024 A"]
[Site "Groningen, Netherlands"]
[Date "2024.05.01"]
[Round "5.6"]
[White "Ramak, Vince"]
[Black "Khatniuk, Anastasiia"]
[Result "0-1"]
[TimeControl "90min/40moves + 30min + 30sec/move"]
[WhiteElo "1902"]
[BlackElo "2012"]

1. e4 {[%clk 01:30:57]} {[%emt 00:00:02]} c5 {[%clk 01:30:57]} {[%emt
00:00:04]} 2. Be2 {[%clk 01:31:21]} {[%emt 00:00:05]} Nc6 {[%clk 01:30:14]}
{[%emt 00:01:13]} 3. d3 {[%clk 01:31:43]} {[%emt 00:00:08]} g6 {[%clk
01:29:55]} {[%emt 00:00:49]} 4. f4 {[%clk 01:32:06]} {[%emt 00:00:08]} d6
{[%clk 01:29:26]} {[%emt 00:00:59]} 5. Nf3 {[%clk 01:32:25]} {[%emt 00:00:10]}
Bg7 {[%clk 01:29:23]} {[%emt 00:00:33]} 6. a4 {[%clk 01:32:36]} {[%emt
00:00:20]} Nf6 {[%clk 01:28:48]} {[%emt 00:01:05]} 7. O-O {[%clk 01:32:58]}
{[%emt 00:00:07]} Bd7 {[%clk 01:27:02]} {[%emt 00:02:16]} 8. c3 {[%clk
01:33:20]} {[%emt 00:00:09]} c4 {[%clk 01:20:42]} {[%emt 00:06:50]} 9. Nbd2
{[%clk 01:24:25]} {[%emt 00:09:24]} cxd3 {[%clk 01:19:24]} {[%emt 00:01:48]} 10.
Bxd3 {[%clk 01:24:49]} {[%emt 00:00:07]} O-O {[%clk 01:13:23]} {[%emt
00:06:30]} 11. Qe1 {[%clk 01:22:49]} {[%emt 00:02:31]} Rc8 {[%clk 01:12:09]}
{[%emt 00:01:44]} 12. Qh4 {[%clk 01:20:37]} {[%emt 00:02:42]} Qa5 {[%clk
01:01:32]} {[%emt 00:11:06]} 13. Nc4 {[%clk 01:15:09]} {[%emt 00:05:59]} Qh5
{[%clk 01:01:01]} {[%emt 00:01:02]} 14. Qxh5 {[%clk 01:15:17]} {[%emt
00:00:21]} Nxh5 {[%clk 01:01:15]} {[%emt 00:00:16]} 15. a5 {[%clk 01:12:59]}
{[%emt 00:02:48]} Nd8 {[%clk 00:51:57]} {[%emt 00:09:47]} 16. Be3 {[%clk
01:10:04]} {[%emt 00:03:26]} Ne6 {[%clk 00:41:58]} {[%emt 00:10:28]} 17. g3
{[%clk 00:59:22]} {[%emt 00:11:13]} Nc5 {[%clk 00:38:38]} {[%emt 00:03:50]} 18.
Bxc5 {[%clk 00:59:01]} {[%emt 00:00:50]} Rxc5 {[%clk 00:38:36]} {[%emt
00:00:33]} 19. Nd4 {[%clk 00:54:55]} {[%emt 00:04:36]} d5 {[%clk 00:32:34]}
{[%emt 00:06:33]} 20. Nd2 {[%clk 00:49:10]} {[%emt 00:06:14]} dxe4 {[%clk
00:31:28]} {[%emt 00:01:36]} 21. Bxe4 {[%clk 00:48:45]} {[%emt 00:00:54]} Bxd4+
{[%clk 00:31:22]} {[%emt 00:00:36]} 22. cxd4 {[%clk 00:49:06]} {[%emt
00:00:10]} Rb5 {[%clk 00:31:37]} {[%emt 00:00:15]} 23. a6 {[%clk 00:42:34]}
{[%emt 00:07:03]} b6 {[%clk 00:30:50]} {[%emt 00:01:15]} 24. Rab1 {[%clk
00:33:24]} {[%emt 00:09:40]} Nf6 {[%clk 00:26:24]} {[%emt 00:04:56]} 25. Bd3
{[%clk 00:30:46]} {[%emt 00:03:08]} Rb4 {[%clk 00:26:05]} {[%emt 00:00:50]} 26.
Nf3 {[%clk 00:31:00]} {[%emt 00:00:16]} Bg4 {[%clk 00:23:38]} {[%emt 00:02:57]}
27. Ne5 {[%clk 00:29:02]} {[%emt 00:02:28]} Rxd4 {[%clk 00:15:52]} {[%emt
00:08:16]} 28. Rfc1 {[%clk 00:28:34]} {[%emt 00:00:58]} Bc8 {[%clk 00:10:46]}
{[%emt 00:05:36]} 29. Rc7 {[%clk 00:27:06]} {[%emt 00:01:59]} Nd5 {[%clk
00:09:20]} {[%emt 00:01:55]} 30. Rc4 {[%clk 00:20:39]} {[%emt 00:06:57]} Rxc4
{[%clk 00:09:41]} {[%emt 00:00:09]} 31. Bxc4 {[%clk 00:21:00]} {[%emt
00:00:09]} e6 {[%clk 00:08:14]} {[%emt 00:01:56]} 32. b4 {[%clk 00:19:30]}
{[%emt 00:02:01]} b5 {[%clk 00:06:29]} {[%emt 00:02:16]} 33. Bxd5 {[%clk
00:17:50]} {[%emt 00:02:10]} exd5 {[%clk 00:06:54]} {[%emt 00:00:04]} 34. Ra1
{[%clk 00:17:43]} {[%emt 00:00:37]} Re8 {[%clk 00:04:12]} {[%emt 00:03:11]} 35.
Nc6 {[%clk 00:16:23]} {[%emt 00:01:51]} Re6 {[%clk 00:04:23]} {[%emt 00:00:19]}
36. Nxa7 {[%clk 00:15:20]} {[%emt 00:01:34]} Rxa6 {[%clk 00:02:38]} {[%emt
00:02:14]} 37. Rxa6 {[%clk 00:15:45]} {[%emt 00:00:05]} Bxa6 {[%clk 00:03:05]}
{[%emt 00:00:04]} 38. Kf2 {[%clk 00:15:59]} {[%emt 00:00:16]} Kf8 {[%clk
00:02:58]} {[%emt 00:00:37]} 39. Ke3 {[%clk 00:16:00]} {[%emt 00:00:29]} Ke7
{[%clk 00:03:19]} {[%emt 00:00:08]} 40. Kd4 {[%clk 00:15:41]} {[%emt 00:00:50]}
Kd6 {[%clk 00:03:20]} {[%emt 00:00:27]} 41. g4 {[%clk 00:15:20]} {[%emt
00:00:53]} Kc7 {[%clk 00:01:57]} {[%emt 00:01:53]} 42. Kxd5 {[%clk 00:14:39]}
{[%emt 00:01:11]} Kb6 {[%clk 00:01:35]} {[%emt 00:00:51]} 43. Nxb5 {[%clk
00:14:36]} {[%emt 00:00:34]} Kxb5 {[%clk 00:01:49]} {[%emt 00:00:16]} 44. Ke5
{[%clk 00:14:49]} {[%emt 00:00:17]} Kxb4 {[%clk 00:01:32]} {[%emt 00:00:47]} 45.
h4 {[%clk 00:10:34]} {[%emt 00:04:45]} Be2 {[%clk 00:00:37]} {[%emt 00:01:24]}
46. g5 {[%clk 00:10:39]} {[%emt 00:00:26]} Kc5 {[%clk 00:00:49]} {[%emt
00:00:18]} 47. Kf6 {[%clk 00:10:59]} {[%emt 00:00:10]} Bc4 {[%clk 00:01:02]}
{[%emt 00:00:16]} 48. f5 {[%clk 00:09:40]} {[%emt 00:01:50]} gxf5 {[%clk
00:00:50]} {[%emt 00:00:42]} 49. Kxf5 {[%clk 00:10:05]} {[%emt 00:00:05]} Bd3
{[%clk 00:01:05]} {[%emt 00:00:14]} 50. Kg4 {[%clk 00:09:33]} {[%emt 00:01:03]}
Kd6 {[%clk 00:01:10]} {[%emt 00:00:26]} 51. Kh5 {[%clk 00:09:37]} {[%emt
00:00:25]} Ke6 {[%clk 00:01:26]} {[%emt 00:00:14]} 52. Kh6 {[%clk 00:09:59]}
{[%emt 00:00:07]} Bg6 {[%clk 00:01:38]} {[%emt 00:00:19]} 53. h5 {[%clk
00:10:09]} {[%emt 00:00:20]} Kf5 {[%clk 00:01:34]} {[%emt 00:00:34]} 54. hxg6
{[%clk 00:10:24]} {[%emt 00:00:15]} hxg6 {[%clk 00:01:59]} {[%emt 00:00:05]}
0-1